[Event "Live Chess"]
[Site "Chess.com"]
[Date "2023.05.20"]
[Round "-"]
[White "xx_blindpuffin_xx"]
[Black "NAZRIZ1977"]
[Result "1/2-1/2"]
[WhiteElo "2181"]
[BlackElo "2056"]
[TimeControl "300"]
[EndTime "13:57:55 PDT"]
[Termination "Game drawn - timeout vs insufficient material"]

1. e4 {[%clk 0:04:59.2]} 1... c5 {[%clk 0:04:58.6]} 2. Nc3 {[%clk 0:04:58.4]}
2... Nc6 {[%clk 0:04:57.5]} 3. g3 {[%clk 0:04:57.8]} 3... g6 {[%clk 0:04:56.8]}
4. Bg2 {[%clk 0:04:57.3]} 4... Bg7 {[%clk 0:04:56.1]} 5. Nge2 {[%clk 0:04:56.7]}
5... d6 {[%clk 0:04:55.4]} 6. O-O {[%clk 0:04:56]} 6... Nf6 {[%clk 0:04:54.6]}
7. d3 {[%clk 0:04:55.5]} 7... O-O {[%clk 0:04:53.8]} 8. h3 {[%clk 0:04:54.6]}
8... Rb8 {[%clk 0:04:52.6]} 9. Be3 {[%clk 0:04:54]} 9... b5 {[%clk 0:04:51.7]}
10. f4 {[%clk 0:04:53.3]} 10... Nd7 {[%clk 0:04:49.6]} 11. Qd2 {[%clk
0:04:50.9]} 11... b4 {[%clk 0:04:48.5]} 12. Nd1 {[%clk 0:04:49.2]} 12... Nd4
{[%clk 0:04:47.6]} 13. c3 {[%clk 0:04:47.3]} 13... Nxe2+ {[%clk 0:04:44.9]} 14.
Qxe2 {[%clk 0:04:47.2]} 14... a5 {[%clk 0:04:44.4]} 15. d4 {[%clk 0:04:42.8]}
15... bxc3 {[%clk 0:04:43.1]} 16. bxc3 {[%clk 0:04:41.6]} 16... cxd4 {[%clk
0:04:42.5]} 17. cxd4 {[%clk 0:04:40.5]} 17... Nb6 {[%clk 0:04:38.9]} 18. Nf2
{[%clk 0:04:31.4]} 18... Na4 {[%clk 0:04:36.2]} 19. Qc2 {[%clk 0:04:26.2]} 19...
Bd7 {[%clk 0:04:30.7]} 20. Rab1 {[%clk 0:04:23]} 20... Rxb1 {[%clk 0:04:24.6]}
21. Rxb1 {[%clk 0:04:22.9]} 21... Qc8 {[%clk 0:04:23.3]} 22. Qb3 {[%clk
0:03:59.8]} 22... Nc3 {[%clk 0:04:19.3]} 23. Rb2 {[%clk 0:03:54]} 23... Ba4
{[%clk 0:04:12.9]} 24. Qb7 {[%clk 0:03:48.8]} 24... Nd1 {[%clk 0:04:09.4]} 25.
Nxd1 {[%clk 0:03:45.1]} 25... Bxd1 {[%clk 0:04:06.2]} 26. Bf1 {[%clk 0:03:32.1]}
26... Qc3 {[%clk 0:04:00.4]} 27. Bf2 {[%clk 0:02:53.3]} 27... Bxd4 {[%clk
0:03:57.8]} 28. Bxd4 {[%clk 0:02:44.3]} 28... Qxd4+ {[%clk 0:03:53.6]} 29. Rf2
{[%clk 0:02:43.7]} 29... e5 {[%clk 0:03:31.7]} 30. fxe5 {[%clk 0:02:42.1]} 30...
Qxe5 {[%clk 0:03:29.5]} 31. Kg2 {[%clk 0:02:36.1]} 31... Qe6 {[%clk 0:03:06.5]}
32. Rd2 {[%clk 0:02:27.1]} 32... Ba4 {[%clk 0:02:56.7]} 33. Qd5 {[%clk 0:02:16]}
33... Rd8 {[%clk 0:02:49.2]} 34. Bc4 {[%clk 0:02:04]} 34... Qxd5 {[%clk
0:02:42.4]} 35. Rxd5 {[%clk 0:02:02]} 35... Bc2 {[%clk 0:02:41]} 36. Kf3 {[%clk
0:01:55.4]} 36... Re8 {[%clk 0:02:38.6]} 37. Rxd6 {[%clk 0:01:49.9]} 37... Bxe4+
{[%clk 0:02:36.7]} 38. Kf4 {[%clk 0:01:48.1]} 38... Bg2 {[%clk 0:02:28.3]} 39.
Bb3 {[%clk 0:01:15.3]} 39... a4 {[%clk 0:02:21.9]} 40. Bc2 {[%clk 0:01:06.2]}
40... Re2 {[%clk 0:02:03.6]} 41. Bd3 {[%clk 0:01:04.7]} 41... Rxa2 {[%clk
0:01:50]} 42. g4 {[%clk 0:00:55.5]} 42... Bxh3 {[%clk 0:01:26.7]} 43. Kg3 {[%clk
0:00:50.9]} 43... Bxg4 {[%clk 0:01:18.7]} 44. Kxg4 {[%clk 0:00:50.8]} 44... Rd2
{[%clk 0:01:16.1]} 45. Kf4 {[%clk 0:00:48.2]} 45... a3 {[%clk 0:01:12]} 46. Ke3
{[%clk 0:00:47.1]} 46... Rd1 {[%clk 0:01:11.1]} 47. Ra6 {[%clk 0:00:43.9]} 47...
Kg7 {[%clk 0:01:00.1]} 48. Rxa3 {[%clk 0:00:39.8]} 48... f5 {[%clk 0:00:59.6]}
49. Be2 {[%clk 0:00:36.6]} 49... Rd8 {[%clk 0:00:54.7]} 50. Kf4 {[%clk
0:00:35.4]} 50... Kh6 {[%clk 0:00:51.2]} 51. Rh3+ {[%clk 0:00:33.7]} 51... Kg7
{[%clk 0:00:49.5]} 52. Bf3 {[%clk 0:00:32.3]} 52... h6 {[%clk 0:00:47.3]} 53.
Rh1 {[%clk 0:00:30.6]} 53... Rf8 {[%clk 0:00:45.8]} 54. Ra1 {[%clk 0:00:29.6]}
54... g5+ {[%clk 0:00:45]} 55. Kg3 {[%clk 0:00:29.1]} 55... Rf6 {[%clk
0:00:42.9]} 56. Ra7+ {[%clk 0:00:27.7]} 56... Kg6 {[%clk 0:00:42.4]} 57. Bd5
{[%clk 0:00:25.3]} 57... h5 {[%clk 0:00:39.9]} 58. Rc7 {[%clk 0:00:22.9]} 58...
h4+ {[%clk 0:00:38.3]} 59. Kh3 {[%clk 0:00:21.9]} 59... Rd6 {[%clk 0:00:36.2]}
60. Bf7+ {[%clk 0:00:20.2]} 60... Kf6 {[%clk 0:00:33.9]} 61. Bh5 {[%clk
0:00:19.3]} 61... Rd3+ {[%clk 0:00:32.5]} 62. Kg2 {[%clk 0:00:18.4]} 62... g4
{[%clk 0:00:31.5]} 63. Rf7+ {[%clk 0:00:17.9]} 63... Kg5 {[%clk 0:00:30.2]} 64.
Rh7 {[%clk 0:00:17.2]} 64... h3+ {[%clk 0:00:27.9]} 65. Kg1 {[%clk 0:00:15.3]}
65... g3 {[%clk 0:00:25.6]} 66. Be2 {[%clk 0:00:15]} 66... Rd2 {[%clk
0:00:22.8]} 67. Kf1 {[%clk 0:00:13.7]} 67... g2+ {[%clk 0:00:21.2]} 68. Kf2
{[%clk 0:00:12.9]} 68... Rxe2+ {[%clk 0:00:20]} 69. Kxe2 {[%clk 0:00:12.3]}
69... g1=Q {[%clk 0:00:19.3]} 70. Rxh3 {[%clk 0:00:11.7]} 70... Qg4+ {[%clk
0:00:18.3]} 71. Rf3 {[%clk 0:00:10.1]} 71... Qg2+ {[%clk 0:00:15.6]} 72. Ke3
{[%clk 0:00:09.6]} 72... Qg1+ {[%clk 0:00:14.6]} 73. Ke2 {[%clk 0:00:08.9]}
73... Qa1 {[%clk 0:00:12.6]} 74. Rf2 {[%clk 0:00:08.8]} 74... Kf6 {[%clk
0:00:12]} 75. Kf3 {[%clk 0:00:08.6]} 75... Ke5 {[%clk 0:00:11.4]} 76. Kg2 {[%clk
0:00:08.5]} 76... f4 {[%clk 0:00:10.6]} 77. Re2+ {[%clk 0:00:08.4]} 77... Kf5
{[%clk 0:00:09.9]} 78. Rf2 {[%clk 0:00:08.3]} 78... Kg4 {[%clk 0:00:09.4]} 79.
Kh2 {[%clk 0:00:07]} 79... Qa8 {[%clk 0:00:09.3]} 80. Rg2+ {[%clk 0:00:06.8]}
80... Kf5 {[%clk 0:00:06.9]} 81. Kg1 {[%clk 0:00:06.1]} 81... Qf3 {[%clk
0:00:06.1]} 82. Rf2 {[%clk 0:00:06]} 82... Qe3 {[%clk 0:00:05.6]} 83. Kf1 {[%clk
0:00:05.8]} 83... Ke4 {[%clk 0:00:03.6]} 84. Re2 {[%clk 0:00:05.7]} 84... Qxe2+
{[%clk 0:00:02.5]} 85. Kxe2 {[%clk 0:00:05.6]} 85... f3+ {[%clk 0:00:02.4]} 86.
Kf2 {[%clk 0:00:05.4]} 86... Kf4 {[%clk 0:00:02.3]} 87. Kf1 {[%clk 0:00:04.8]}
87... Ke4 {[%clk 0:00:02.2]} 88. Ke1 {[%clk 0:00:04.6]} 88... Ke3 {[%clk
0:00:02.1]} 89. Kf1 {[%clk 0:00:04.5]} 89... f2 {[%clk 0:00:02]} 90. Kg2 {[%clk
0:00:03.8]} 90... Ke2 {[%clk 0:00:01.1]} 91. Kg3 {[%clk 0:00:03.7]} 91... f1=Q
{[%clk 0:00:01]} 92. Kg4 {[%clk 0:00:03.6]} 92... Qf2 {[%clk 0:00:00.7]} 93. Kg5
{[%clk 0:00:03.1]} 93... Qf3 {[%clk 0:00:00.6]} 94. Kg6 {[%clk 0:00:03]} 94...
Ke3 {[%clk 0:00:00.5]} 95. Kg5 {[%clk 0:00:02.9]} 1/2-1/2

[Event "Live Chess"]
[Site "Chess.com"]
[Date "2023.05.20"]
[Round "-"]
[White "FailsGambits"]
[Black "kenn48"]
[Result "1-0"]
[WhiteElo "1321"]
[BlackElo "1150"]
[TimeControl "300"]
[EndTime "13:57:55 PDT"]
[Termination "FailsGambits won on time"]

1. e4 {[%clk 0:04:59.9]} 1... e5 {[%clk 0:04:58.6]} 2. Nf3 {[%clk 0:04:59.2]}
2... Nc6 {[%clk 0:04:57.3]} 3. d4 {[%clk 0:04:58.4]} 3... exd4 {[%clk
0:04:55.1]} 4. Nxd4 {[%clk 0:04:58.3]} 4... Nxd4 {[%clk 0:04:53.1]} 5. Qxd4
{[%clk 0:04:58.2]} 5... b6 {[%clk 0:04:41.8]} 6. Nc3 {[%clk 0:04:56.7]} 6... Bb7
{[%clk 0:04:36.8]} 7. Bc4 {[%clk 0:04:51.7]} 7... Bc5 {[%clk 0:04:31.2]} 8. Qd3
{[%clk 0:04:48.2]} 8... Nf6 {[%clk 0:04:23.4]} 9. Be3 {[%clk 0:04:45.2]} 9...
Bxe3 {[%clk 0:04:13.8]} 10. Qxe3 {[%clk 0:04:45.1]} 10... Qe7 {[%clk 0:04:08.3]}
11. Bd3 {[%clk 0:04:38.7]} 11... O-O-O {[%clk 0:03:57.3]} 12. O-O-O {[%clk
0:04:29.5]} 12... Ng4 {[%clk 0:03:46.8]} 13. Qe2 {[%clk 0:04:27.5]} 13... Ne5
{[%clk 0:03:40.2]} 14. Ba6 {[%clk 0:04:18.7]} 14... Rhe8 {[%clk 0:03:24.2]} 15.
Bxb7+ {[%clk 0:04:07.6]} 15... Kxb7 {[%clk 0:03:21.7]} 16. Nd5 {[%clk
0:04:02.9]} 16... Qg5+ {[%clk 0:03:18.3]} 17. f4 {[%clk 0:03:51.5]} 17... Qh6
{[%clk 0:02:49.1]} 18. Kb1 {[%clk 0:03:09.9]} 18... Nc6 {[%clk 0:02:45.5]} 19.
Qf3 {[%clk 0:02:50.8]} 19... Qe6 {[%clk 0:02:19.9]} 20. Nc3 {[%clk 0:02:41.9]}
20... Kb8 {[%clk 0:01:54.2]} 21. Rhe1 {[%clk 0:02:35.7]} 21... Qc4 {[%clk
0:01:41.4]} 22. Qd3 {[%clk 0:02:19.8]} 22... Qxd3 {[%clk 0:01:27.8]} 23. Rxd3
{[%clk 0:02:19.7]} 23... d6 {[%clk 0:01:23.2]} 24. Rg3 {[%clk 0:02:03.6]} 24...
g6 {[%clk 0:01:19.4]} 25. Nd5 {[%clk 0:01:56.3]} 25... h5 {[%clk 0:01:05]} 26.
Rge3 {[%clk 0:01:37.8]} 26... Nd4 {[%clk 0:00:53.7]} 27. c3 {[%clk 0:01:25.4]}
27... Ne6 {[%clk 0:00:45.1]} 28. Nb4 {[%clk 0:01:24.2]} 28... Rd7 {[%clk
0:00:33.7]} 29. g3 {[%clk 0:01:16.5]} 29... Nc5 {[%clk 0:00:25.8]} 30. Nd5
{[%clk 0:01:10.5]} 30... Ree7 {[%clk 0:00:17.3]} 31. Nxe7 {[%clk 0:01:08]} 31...
Rxe7 {[%clk 0:00:16.1]} 32. e5 {[%clk 0:01:07.8]} 32... dxe5 {[%clk 0:00:13.2]}
33. fxe5 {[%clk 0:01:07.7]} 33... Re6 {[%clk 0:00:01.6]} 34. Kc2 {[%clk
0:00:57.5]} 34... Nd7 {[%clk 0:00:00.3]} 35. Rf3 {[%clk 0:00:48.3]} 1-0

[Event "Live Chess"]
[Site "Chess.com"]
[Date "2023.05.20"]
[Round "-"]
[White "Ferrarifan27"]
[Black "mliszewski"]
[Result "1-0"]
[WhiteElo "2065"]
[BlackElo "1858"]
[TimeControl "300"]
[EndTime "13:57:59 PDT"]
[Termination "Ferrarifan27 won by resignation"]

1. e4 {[%clk 0:04:57.5]} 1... c6 {[%clk 0:04:57.9]} 2. d4 {[%clk 0:04:55.9]}
2... d5 {[%clk 0:04:57.8]} 3. e5 {[%clk 0:04:55.1]} 3... c5 {[%clk 0:04:57.1]}
4. dxc5 {[%clk 0:04:53.6]} 4... Nc6 {[%clk 0:04:55.8]} 5. a3 {[%clk 0:04:50.6]}
5... e6 {[%clk 0:04:53.4]} 6. b4 {[%clk 0:04:48.5]} 6... Nxe5 {[%clk 0:04:52.1]}
7. Bb2 {[%clk 0:04:47.8]} 7... Nc6 {[%clk 0:04:48.7]} 8. Nf3 {[%clk 0:04:46.8]}
8... Nf6 {[%clk 0:04:47.5]} 9. Nc3 {[%clk 0:04:44.3]} 9... Be7 {[%clk
0:04:44.7]} 10. Bd3 {[%clk 0:04:40]} 10... O-O {[%clk 0:04:43.5]} 11. O-O {[%clk
0:04:38.3]} 11... b6 {[%clk 0:04:43]} 12. b5 {[%clk 0:04:33]} 12... Na5 {[%clk
0:04:35.2]} 13. c6 {[%clk 0:04:29.8]} 13... a6 {[%clk 0:04:34.5]} 14. a4 {[%clk
0:04:27.4]} 14... axb5 {[%clk 0:04:31.8]} 15. axb5 {[%clk 0:04:26.6]} 15... Qc7
{[%clk 0:04:16]} 16. Re1 {[%clk 0:04:24.2]} 16... Bc5 {[%clk 0:04:10.5]} 17. Na4
{[%clk 0:04:17.1]} 17... Rb8 {[%clk 0:03:51.4]} 18. Nxc5 {[%clk 0:04:12.5]}
18... bxc5 {[%clk 0:03:50.8]} 19. Bxf6 {[%clk 0:04:09.5]} 19... gxf6 {[%clk
0:03:48.9]} 20. Qd2 {[%clk 0:04:08.5]} 20... c4 {[%clk 0:03:38.1]} 21. Qxa5
{[%clk 0:03:58.8]} 21... Qxa5 {[%clk 0:03:33.9]} 22. Rxa5 {[%clk 0:03:58.7]}
22... cxd3 {[%clk 0:03:33.2]} 23. cxd3 {[%clk 0:03:58.1]} 23... Rb6 {[%clk
0:03:30.6]} 24. Rea1 {[%clk 0:03:50.7]} 24... e5 {[%clk 0:03:27.6]} 25. Kf1
{[%clk 0:03:36.8]} 25... Be6 {[%clk 0:03:26.5]} 26. d4 {[%clk 0:03:31.6]} 26...
e4 {[%clk 0:03:23.7]} 27. Nd2 {[%clk 0:03:27.9]} 27... Rfb8 {[%clk 0:03:21.5]}
28. Rb1 {[%clk 0:03:21.6]} 28... f5 {[%clk 0:03:03.4]} 29. g3 {[%clk 0:03:19]}
29... f6 {[%clk 0:03:02.2]} 30. Ke2 {[%clk 0:03:09.7]} 30... Bf7 {[%clk
0:03:01.7]} 31. Kd1 {[%clk 0:03:07.4]} 31... Be8 {[%clk 0:02:58.6]} 32. c7
{[%clk 0:03:03.8]} 32... Rc8 {[%clk 0:02:53.4]} 33. Ra7 {[%clk 0:02:35]} 33...
Rxb5 {[%clk 0:02:46.5]} 34. Rxb5 {[%clk 0:02:33.1]} 34... Bxb5 {[%clk 0:02:46]}
35. Rb7 {[%clk 0:02:32.4]} 35... Bd7 {[%clk 0:02:41.8]} 36. Nb3 {[%clk
0:02:30.4]} 36... Kf7 {[%clk 0:02:31.5]} 37. Nc5 {[%clk 0:02:29.5]} 37... Bc6
{[%clk 0:02:26.5]} 38. Ra7 {[%clk 0:02:21.4]} 38... Ke7 {[%clk 0:02:22.6]} 39.
Kd2 {[%clk 0:02:12.7]} 39... Kd6 {[%clk 0:02:22]} 40. Ke3 {[%clk 0:02:08.7]}
40... Rxc7 {[%clk 0:02:18.1]} 41. Rxc7 {[%clk 0:02:07.8]} 41... Kxc7 {[%clk
0:02:17.4]} 42. Kf4 {[%clk 0:02:07.3]} 42... Kd6 {[%clk 0:02:12]} 43. Kxf5
{[%clk 0:02:06.1]} 43... Ke7 {[%clk 0:02:11.6]} 44. Kg4 {[%clk 0:01:47.9]} 44...
Bb5 {[%clk 0:02:09.6]} 45. Kh5 {[%clk 0:01:45.5]} 45... Be2+ {[%clk 0:02:07]}
46. Kh6 {[%clk 0:01:44.5]} 46... Bg4 {[%clk 0:01:54]} 47. Kxh7 {[%clk
0:01:42.4]} 47... Kf7 {[%clk 0:01:50.1]} 48. Kh6 {[%clk 0:01:39.5]} 48... Bc8
{[%clk 0:01:47.9]} 49. Kh5 {[%clk 0:01:34.7]} 49... f5 {[%clk 0:01:44.2]} 50.
Kg5 {[%clk 0:01:33.1]} 50... Ke7 {[%clk 0:01:41.4]} 51. h4 {[%clk 0:01:26.4]}
51... Kf7 {[%clk 0:01:40.7]} 52. h5 {[%clk 0:01:23.9]} 52... Kg7 {[%clk
0:01:40.2]} 53. h6+ {[%clk 0:01:20.2]} 53... Kh7 {[%clk 0:01:39.4]} 54. Nb3
{[%clk 0:01:15.2]} 54... Be6 {[%clk 0:01:35.5]} 55. Nc1 {[%clk 0:01:13.6]} 55...
Bf7 {[%clk 0:01:29.7]} 56. Ne2 {[%clk 0:01:12]} 56... Bg8 {[%clk 0:01:27.6]} 57.
Nf4 {[%clk 0:01:10.6]} 57... Bf7 {[%clk 0:01:26]} 58. Nh5 {[%clk 0:01:06.8]}
58... Bxh5 {[%clk 0:01:14.1]} 59. Kxh5 {[%clk 0:01:06.7]} 59... Kh8 {[%clk
0:01:09.2]} 60. Kg6 {[%clk 0:01:05.9]} 60... Kg8 {[%clk 0:01:08.2]} 61. Kxf5
{[%clk 0:01:01.3]} 61... Kh7 {[%clk 0:01:08.1]} 1-0

[Event "Live Chess"]
[Site "Chess.com"]
[Date "2023.05.20"]
[Round "-"]
[White "lordjimvi"]
[Black "Wild_Tiger"]
[Result "0-1"]
[WhiteElo "390"]
[BlackElo "1072"]
[TimeControl "300"]
[EndTime "13:58:16 PDT"]
[Termination "Wild_Tiger won by resignation"]

1. e4 {[%clk 0:04:57.8]} 1... d5 {[%clk 0:04:57.3]} 2. exd5 {[%clk 0:04:56.9]}
2... Qxd5 {[%clk 0:04:56.9]} 3. d3 {[%clk 0:04:54.2]} 3... Nf6 {[%clk
0:04:49.4]} 4. Be2 {[%clk 0:04:53.4]} 4... Bg4 {[%clk 0:04:46.9]} 5. Bxg4 {[%clk
0:04:51.5]} 5... Qxg2 {[%clk 0:04:40]} 6. Kd2 {[%clk 0:04:44.6]} 6... Qxh1
{[%clk 0:04:36.2]} 7. Nf3 {[%clk 0:04:43.6]} 7... Qxd1+ {[%clk 0:04:31.3]} 8.
Kxd1 {[%clk 0:04:41.9]} 8... Nxg4 {[%clk 0:04:30.9]} 9. Nh4 {[%clk 0:04:38.4]}
9... Nxf2+ {[%clk 0:04:26.6]} 10. Ke1 {[%clk 0:04:35.5]} 10... Ng4 {[%clk
0:04:23.2]} 11. Bg5 {[%clk 0:04:33.3]} 11... Nxh2 {[%clk 0:04:19.1]} 0-1

[Event "Live Chess"]
[Site "Chess.com"]
[Date "2023.05.20"]
[Round "-"]
[White "BostonStrangler"]
[Black "f4nomore"]
[Result "1-0"]
[WhiteElo "2054"]
[BlackElo "1378"]
[TimeControl "300"]
[EndTime "13:58:19 PDT"]
[Termination "BostonStrangler won by resignation"]

1. Nf3 {[%clk 0:04:58.3]} 1... g6 {[%clk 0:04:58]} 2. g3 {[%clk 0:04:56.5]} 2...
Bg7 {[%clk 0:04:54.2]} 3. Bg2 {[%clk 0:04:56]} 3... d6 {[%clk 0:04:53.1]} 4. O-O
{[%clk 0:04:54.8]} 4... c5 {[%clk 0:04:50.6]} 5. c4 {[%clk 0:04:50.3]} 5... Nc6
{[%clk 0:04:49.6]} 6. d3 {[%clk 0:04:48.2]} 6... Nf6 {[%clk 0:04:48.5]} 7. Nc3
{[%clk 0:04:47.2]} 7... O-O {[%clk 0:04:47.5]} 8. Rb1 {[%clk 0:04:45.7]} 8... a6
{[%clk 0:04:42.6]} 9. a3 {[%clk 0:04:44.7]} 9... Rb8 {[%clk 0:04:41.5]} 10. Ne1
{[%clk 0:04:41.9]} 10... Bd7 {[%clk 0:04:39.3]} 11. Nc2 {[%clk 0:04:40.8]} 11...
b5 {[%clk 0:04:36.5]} 12. cxb5 {[%clk 0:04:39.6]} 12... axb5 {[%clk 0:04:34.5]}
13. b4 {[%clk 0:04:39.2]} 13... cxb4 {[%clk 0:04:30.3]} 14. Nxb4 {[%clk
0:04:37.8]} 14... Ng4 {[%clk 0:04:15.7]} 15. Nxc6 {[%clk 0:04:14.7]} 15... Bxc6
{[%clk 0:04:12.6]} 16. Bxc6 {[%clk 0:04:12.1]} 16... Bxc3 {[%clk 0:04:09.6]} 17.
Rxb5 {[%clk 0:04:01.9]} 17... Rxb5 {[%clk 0:04:07]} 18. Bxb5 {[%clk 0:04:01.8]}
18... Bg7 {[%clk 0:04:04.6]} 19. Bc4 {[%clk 0:03:55.5]} 19... d5 {[%clk
0:04:02.2]} 20. Bb3 {[%clk 0:03:54.4]} 20... e6 {[%clk 0:03:59]} 21. a4 {[%clk
0:03:50.8]} 21... Qa5 {[%clk 0:03:53.4]} 22. Qd2 {[%clk 0:03:44.3]} 22... Qa7
{[%clk 0:03:47.9]} 23. Qf4 {[%clk 0:03:39.3]} 23... Nf6 {[%clk 0:03:40.2]} 24.
Ba3 {[%clk 0:03:36.5]} 24... Rc8 {[%clk 0:03:30.7]} 25. Bb2 {[%clk 0:03:09.4]}
25... Nh5 {[%clk 0:03:24.9]} 26. Qd2 {[%clk 0:03:08.3]} 26... Bxb2 {[%clk
0:03:17.1]} 27. Qxb2 {[%clk 0:03:08.2]} 27... Rb8 {[%clk 0:03:13.5]} 28. Qc2
{[%clk 0:03:00.6]} 28... Nf6 {[%clk 0:03:10.7]} 29. Rb1 {[%clk 0:02:49.2]} 29...
Ng4 {[%clk 0:03:02]} 30. e3 {[%clk 0:02:47.8]} 30... Nxe3 {[%clk 0:02:56.5]} 31.
fxe3 {[%clk 0:02:40]} 31... Qxe3+ {[%clk 0:02:54.6]} 32. Kg2 {[%clk 0:02:33.5]}
32... Qe5 {[%clk 0:02:20]} 33. a5 {[%clk 0:02:24.3]} 33... Ra8 {[%clk
0:02:16.1]} 34. Qd2 {[%clk 0:02:05]} 34... Qd4 {[%clk 0:02:08.6]} 35. Bd1 {[%clk
0:01:56.4]} 35... e5 {[%clk 0:02:01.9]} 36. Rb4 {[%clk 0:01:33.4]} 36... Qc5
{[%clk 0:01:50.9]} 37. Ra4 {[%clk 0:01:20]} 37... e4 {[%clk 0:01:43.8]} 38. d4
{[%clk 0:01:15.1]} 38... Qd6 {[%clk 0:01:32.5]} 39. Be2 {[%clk 0:01:08.2]} 39...
Kg7 {[%clk 0:01:29.7]} 40. a6 {[%clk 0:01:06.8]} 40... f5 {[%clk 0:01:24.3]} 41.
a7 {[%clk 0:01:04.7]} 41... Qb6 {[%clk 0:01:19.7]} 42. Ra6 {[%clk 0:00:54.7]}
42... Qb4 {[%clk 0:01:10.6]} 43. Qxb4 {[%clk 0:00:51.4]} 1-0

[Event "Live Chess"]
[Site "Chess.com"]
[Date "2023.05.20"]
[Round "-"]
[White "TheSmoulderingMaster"]
[Black "Oleg_Silin"]
[Result "1-0"]
[WhiteElo "1734"]
[BlackElo "1465"]
[TimeControl "300"]
[EndTime "13:58:32 PDT"]
[Termination "TheSmoulderingMaster won by resignation"]

1. e4 {[%clk 0:04:58.7]} 1... c5 {[%clk 0:04:58.3]} 2. Nf3 {[%clk 0:04:57.6]}
2... e6 {[%clk 0:04:55.8]} 3. d4 {[%clk 0:04:56.6]} 3... cxd4 {[%clk 0:04:53.6]}
4. Nxd4 {[%clk 0:04:56]} 4... Nf6 {[%clk 0:04:53.1]} 5. Nc3 {[%clk 0:04:55.2]}
5... Nc6 {[%clk 0:04:51.9]} 6. Bg5 {[%clk 0:04:53.1]} 6... Bb4 {[%clk
0:04:41.6]} 7. Bc4 {[%clk 0:04:47.6]} 7... h6 {[%clk 0:04:38.7]} 8. Bh4 {[%clk
0:04:46.2]} 8... g5 {[%clk 0:04:34]} 9. Bg3 {[%clk 0:04:45.1]} 9... Nxe4 {[%clk
0:04:32.9]} 10. O-O {[%clk 0:04:44.1]} 10... Nxc3 {[%clk 0:04:27.2]} 11. bxc3
{[%clk 0:04:43.3]} 11... Bxc3 {[%clk 0:04:26.3]} 12. Nb5 {[%clk 0:04:39.8]}
12... O-O {[%clk 0:03:46.4]} 13. Nxc3 {[%clk 0:04:36.9]} 13... d5 {[%clk
0:03:40.3]} 14. Bb5 {[%clk 0:04:35.3]} 14... a6 {[%clk 0:03:35.3]} 15. Bxc6
{[%clk 0:04:33.2]} 15... bxc6 {[%clk 0:03:35.2]} 16. Ne2 {[%clk 0:04:32]} 16...
f5 {[%clk 0:03:32.6]} 17. Nd4 {[%clk 0:04:30.5]} 17... f4 {[%clk 0:03:29.1]} 18.
Nxc6 {[%clk 0:04:27]} 18... Qc7 {[%clk 0:03:19]} 19. Nd4 {[%clk 0:04:22.2]}
19... fxg3 {[%clk 0:03:16.4]} 20. fxg3 {[%clk 0:04:20.9]} 20... Bd7 {[%clk
0:03:10.6]} 21. Qd3 {[%clk 0:04:15.7]} 21... Kg7 {[%clk 0:02:59.4]} 22. Rfe1
{[%clk 0:04:09.5]} 22... Qc5 {[%clk 0:02:55]} 23. c3 {[%clk 0:04:06.8]} 23...
Rae8 {[%clk 0:02:50.3]} 24. Kh1 {[%clk 0:04:04.7]} 24... e5 {[%clk 0:02:46.7]}
25. Nf3 {[%clk 0:03:56]} 25... e4 {[%clk 0:02:44.3]} 26. Qd4+ {[%clk 0:03:46.8]}
26... Qxd4 {[%clk 0:02:36.8]} 27. Nxd4 {[%clk 0:03:45.9]} 27... Rf2 {[%clk
0:02:32.5]} 28. h3 {[%clk 0:03:42.9]} 28... Rb8 {[%clk 0:02:21.7]} 29. Rab1
{[%clk 0:03:39]} 29... Rbf8 {[%clk 0:02:01.5]} 30. Rb7 {[%clk 0:03:34.8]} 30...
R8f7 {[%clk 0:01:58.9]} 31. Reb1 {[%clk 0:03:26.6]} 31... Rxa2 {[%clk
0:01:47.9]} 32. R1b6 {[%clk 0:03:22.1]} 32... Bb5 {[%clk 0:01:38]} 33. Ne6+
{[%clk 0:03:12.2]} 33... Kg6 {[%clk 0:01:12.9]} 34. Nf4+ {[%clk 0:03:05.9]}
34... Kg7 {[%clk 0:01:08.3]} 35. Nxd5 {[%clk 0:03:05]} 35... Ra1+ {[%clk
0:00:52.9]} 36. Kh2 {[%clk 0:03:03.4]} 36... Rd1 {[%clk 0:00:47.5]} 37. Ne3
{[%clk 0:02:59.1]} 37... Rd3 {[%clk 0:00:37.6]} 38. Nf5+ {[%clk 0:02:57.4]} 1-0

[Event "Live Chess"]
[Site "Chess.com"]
[Date "2023.05.20"]
[Round "-"]
[White "Bob2pen"]
[Black "ProfPoisson"]
[Result "1-0"]
[WhiteElo "1823"]
[BlackElo "1142"]
[TimeControl "300"]
[EndTime "13:58:33 PDT"]
[Termination "Bob2pen won by resignation"]

1. e4 {[%clk 0:04:54.8]} 1... e5 {[%clk 0:04:57.8]} 2. Nf3 {[%clk 0:04:53.6]}
2... Nf6 {[%clk 0:04:55.5]} 3. d4 {[%clk 0:04:49.6]} 3... Nxe4 {[%clk
0:04:53.5]} 4. Bd3 {[%clk 0:04:48.6]} 4... d5 {[%clk 0:04:51.5]} 5. Nxe5 {[%clk
0:04:47.5]} 5... Nd7 {[%clk 0:04:46.7]} 6. Nxd7 {[%clk 0:04:45.9]} 6... Bxd7
{[%clk 0:04:44]} 7. O-O {[%clk 0:04:45.4]} 7... Bd6 {[%clk 0:04:38.8]} 8. c4
{[%clk 0:04:44.1]} 8... O-O {[%clk 0:04:27]} 9. cxd5 {[%clk 0:04:41.9]} 9... f5
{[%clk 0:04:06.4]} 10. Nc3 {[%clk 0:04:39.3]} 10... Qh4 {[%clk 0:03:46.6]} 11.
g3 {[%clk 0:04:37.2]} 11... Qh3 {[%clk 0:03:24.2]} 12. Nxe4 {[%clk 0:04:35]}
12... fxe4 {[%clk 0:03:21.2]} 13. Bxe4 {[%clk 0:04:33.7]} 13... Bb5 {[%clk
0:03:12.1]} 14. Bd3 {[%clk 0:04:13.4]} 14... Bd7 {[%clk 0:02:56.3]} 15. Be3
{[%clk 0:04:11.5]} 15... Bg4 {[%clk 0:02:52.5]} 16. Be2 {[%clk 0:04:06.6]} 16...
Bxe2 {[%clk 0:02:42.8]} 17. Qxe2 {[%clk 0:04:05]} 17... Rf7 {[%clk 0:02:40.8]}
18. Rae1 {[%clk 0:03:40.1]} 18... Raf8 {[%clk 0:02:38.4]} 19. f4 {[%clk
0:03:38.5]} 19... Qf5 {[%clk 0:02:20.7]} 20. Bf2 {[%clk 0:03:34.3]} 20... Qxd5
{[%clk 0:02:18.2]} 21. Qe4 {[%clk 0:03:24]} 21... Qxa2 {[%clk 0:02:15]} 22. Qxb7
{[%clk 0:03:22]} 22... a5 {[%clk 0:02:05.9]} 23. Re3 {[%clk 0:03:09.5]} 23...
Bb4 {[%clk 0:01:56.5]} 24. Re5 {[%clk 0:03:01.8]} 24... Qxb2 {[%clk 0:01:50.5]}
25. Rxa5 {[%clk 0:02:52.6]} 25... c5 {[%clk 0:01:24.8]} 26. Qb5 {[%clk
0:02:45.6]} 26... cxd4 {[%clk 0:01:19.3]} 27. Ra4 {[%clk 0:02:42.4]} 27... Qe2
{[%clk 0:00:14.8]} 28. Qxe2 {[%clk 0:02:39.3]} 1-0